Cogmind - Beta 15 @@@ ROGUE MODE // 2025.07.22 @ 22:10:36 Player: jumpy Result: Self-destructed Performance ------------- Evolutions (1) 500 Regions Visited (4) 800 Robots Destroyed (19) 95 Value Destroyed (394) 394 Prototype IDs (3) 60 Alien Tech Used (0) 0 Bonus (0) 0 TOTAL SCORE: 1849 Bonus ------- None Cogmind --------- Core Integrity 334/400 Matter 14/300 Energy 275/275 System Corruption 0% Temperature Cool (0) Movement Walking (120) Location -9/Mines Parts ------- > --- POWER (1) -------- Deuterium Engine > --- PROPULSION (3) --- Aluminum Leg Aluminum Leg Improved Aluminum Leg > --- UTILITY (3) ------ Small Storage Unit Seismic Detector Improved Light Armor Plating > --- WEAPON (2) ------- Heavy Assault Rifle Rocket Launcher > --- INVENTORY (8) ---- Deuterium Engine Deuterium Engine Wheel Improved Terrain Scanner Seismic Detector Improved Light Armor Plating Heavy Assault Rifle Mining Laser Peak State ------------ > --- POWER ------------ Deuterium Engine > --- PROPULSION ------- Aluminum Leg Aluminum Leg Improved Aluminum Leg > --- UTILITY ---------- Small Storage Unit Seismic Detector Improved Light Armor Plating > --- WEAPON ----------- Heavy Assault Rifle Heavy Assault Rifle > --- INVENTORY -------- Improved Ion Engine Wheel Compact Wheel Improved Terrain Scanner Seismic Detector Medium Laser Rocket Launcher Mining Laser [Rating: 17] Favorites ----------- Power Deuterium Engine Engine Deuterium Engine Propulsion Aluminum Leg Leg Aluminum Leg Utility Small Storage Unit Device Seismic Detector Storage Small Storage Unit Protection Improved Light Armor Plating Weapon Heavy Assault Rifle Energy Gun Medium Laser Ballistic Gun Heavy Assault Rifle Launcher Rocket Launcher Build | -11 -10 -10 -9 -9 ------- Run | Yrd Mat Min Mat Min Slots Evolved 2 | . . . 2 . Power . | . . . . . Propulsion 1 | . . . 1 . Utility 1 | . . . 1 . Weapon . | . . . . . Parts Attached 18 | 7 2 1 8 . Power 3 | 1 1 . 1 . Engine 3 | 1 1 . 1 . Core . | . . . . . Reactor . | . . . . . Propulsion 5 | 2 . . 3 . Treads . | . . . . . Leg 5 | 2 . . 3 . Wheel . | . . . . . Hover . | . . . . . Flight . | . . . . . Utility 4 | 2 . . 2 . Device 1 | 1 . . . . Storage 1 | 1 . . . . Processor . | . . . . . Hackware . | . . . . . Protection 2 | . . . 2 . Artifact . | . . . . . Weapon 6 | 2 1 1 2 . Energy Gun 1 | . 1 . . . Energy Cannon . | . . . . . Ballistic Gun 4 | 2 . . 2 . Ballistic Cannon . | . . . . . Launcher 1 | . . 1 . . Special Weapon . | . . . . . Impact Weapon . | . . . . . Slashing Weapon . | . . . . . Piercing Weapon . | . . . . . Special Melee Weapon . | . . . . . Unidentified Prototypes . | . . . . . Parts Lost 1 | . . . 1 . Power . | . . . . . Propulsion 1 | . . . 1 . Utility . | . . . . . Weapon . | . . . . . Highest Loss Streak 1 | . . . 1 . To Critical Strikes . | . . . . . Average Backups 7 | 4 7 8 8 8 Power 1 | . 1 1 1 2 Propulsion 1 | 1 2 2 1 1 Utility 2 | . 2 2 2 3 Weapon 2 | 1 2 3 2 2 Tool/Special . | . . . . . Unused Backups 12 | . 2 . 3 7 Power 5 | . 2 . 1 2 Propulsion 2 | . . . 1 1 Utility 3 | . . . . 3 Weapon 2 | . . . 1 1 Tool/Special . | . . . . . Average Slot Usage (%) 96 | . 100 100 88 100 Engine 11 | . 14 14 11 11 Leg 30 | . 28 28 27 33 Device 11 | . 14 14 11 11 Storage 11 | . 14 14 11 11 Protection 7 | . . . 5 11 Energy Gun 1 | . 9 14 2 . Ballistic Gun 20 | . 19 9 19 21 Peak Build Rating 17 | 7 9 10 17 17 Average Rating 13 | 6 8 9 12 17 On Entrance 8 | . 7 9 9 17 Naked Turns . | . . . . . Heaviest Build 25 | 14 17 17 24 25 Greatest Support 33 | 20 20 20 33 33 Greatest Overweight (x) 1 | . . . 1 . Average Overweight (x) . | . . . . . Largest Inventory Capacity 8 | 8 8 8 8 8 Average Capacity 7 | 7 8 8 8 8 Most Carried 8 | 7 8 8 8 8 Average Carried 7 | 4 7 8 7 8 Final Capacity 8 | 8 8 8 8 8 Final Carried 8 | 7 8 8 8 8 Class Distribution -------------------- 64% | Scavenger-Mutant 35% | Mutant Dominant Class ---------------- Mutant | -10/Materials Mutant | -10/Mines Mutant | -9/Materials Scavenger-Mutant | -9/Mines Resources | -11 -10 -10 -9 -9 ----------- Run | Yrd Mat Min Mat Min Matter Collected 473 | 326 . . 147 . Remotely . | . . . . . Salvage Created 606 | 223 . 32 348 3 Parts 42 | 17 . 5 20 . Haulers Intercepted 1 | . . . 1 . Recyclers Shooed . | . . . . . Parts Field Recycled . | . . . . . Retrieved Matter . | . . . . . Parts Self-Destructed . | . . . . . Prevented . | . . . . . Kills | -11 -10 -10 -9 -9 ------- Run | Yrd Mat Min Mat Min Combat Hostiles Destroyed 14 | . . 3 7 4 Guns 7 | . . . 7 . AOE 7 | . . 3 . 4 Classes Destroyed 9 | 3 . 1 4 1 Worker 3 | 1 . 2 . . Tunneler 4 | 4 . . . . Hauler 1 | . . . 1 . Recycler 1 | 1 . . . . Swarmer 3 | . . 3 . . Grunt 5 | . . . 5 . Duelist 1 | . . . 1 . Sentry 1 | . . . 1 . Assembled 4 | . . . . 4 Best Kill Streak 5 | 3 . 5 3 4 Combat Bots Only 4 | . . 3 3 4 Max Kills in Single Turn 3 | 1 . 3 1 1 Gunslinging . | . . . . . Exploded 2 | . . 2 . 1 Melee . | . . . . . Uniques/NPCs Destroyed . | . . . . . Combat | -11 -10 -10 -9 -9 -------- Run | Yrd Mat Min Mat Min Hostile Shots Fired 52 | . . 4 45 3 Missed 12 | . . 1 9 2 Hits 40 | . . 3 36 1 Melee 1 | . . . 1 . Projectile 39 | . . 3 35 1 Critical Strikes 1 | . . . 1 . Damage Taken 520 | . . 26 479 15 Core 66 | . . . 66 . Absorbed by Shields . | . . . . . Core Remaining (%) 100 | 100 . 100 . . Volleys Fired 59 | 14 . 2 37 6 Largest 2 | 2 . 1 2 1 Hottest 70 | 40 . 33 70 33 Shots Fired 110 | 28 . 2 74 6 Gun 102 | 28 . . 74 . Cannon . | . . . . . Launcher 8 | . . 2 . 6 Special . | . . . . . Kinetic 98 | 28 . . 70 . Thermal 4 | . . . 4 . Explosive 8 | . . 2 . 6 Electromagnetic . | . . . . . Robot Hit Streak 8 | 6 . 4 8 1 Robot Miss Streak 3 | 2 . . 3 3 Penetration Max . | . . . . . Secondary Targets 2 | . . . 2 . Max Gunslinging Chain 1 | . . . 1 . Shots Hit Robots 66 | 17 . 2 45 2 Core Hits 37 | 8 . 6 16 7 Critical Kills . | . . . . . Critical Parts Destroyed . | . . . . . Critical Strikes . | . . . . . Melee Attacks . | . . . . . Impact . | . . . . . Slashing . | . . . . . Piercing . | . . . . . Sneak Attacks . | . . . . . Combat Hostiles . | . . . . . Follow-up Attacks . | . . . . . Damage Inflicted 1349 | 199 . 272 596 282 Guns 795 | 199 . . 596 . Cannons . | . . . . . Explosions 554 | . . 272 . 282 Melee . | . . . . . Ramming . | . . . . . Kinetic 770 | 199 . . 571 . Thermal 25 | . . . 25 . Explosive 554 | . . 272 . 282 Electromagnetic . | . . . . . Impact . | . . . . . Slashing . | . . . . . Piercing . | . . . . . Highest Corruption . | . . . . . Average Corruption . | . . . . . Corruption Purged . | . . . . . Corruption Blocked . | . . . . . Overload Shots . | . . . . . Overflow Damage 28 | . . 28 . . Projectiles . | . . . . . Explosions 28 | . . 28 . . Melee . | . . . . . Knockbacks . | . . . . . Impact . | . . . . . Kinetic . | . . . . . Secondary . | . . . . . Self-Inflicted Damage . | . . . . . Shots . | . . . . . Rammed . | . . . . . Targets Rammed . | . . . . . Kicked . | . . . . . Crushed . | . . . . . Highest Temperature 19 | . . . 19 . Average Temperature 5 | . . . 5 . Received Heat Transfer 222 | . . . 222 . Siege Activations . | . . . . . Martial Activations . | . . . . . Shielding Activations . | . . . . . Robots Disrupted . | . . . . . Combat Hostiles . | . . . . . Robots Corrupted . | . . . . . Combat Hostiles . | . . . . . Parts Fried . | . . . . . Impact Corruptions . | . . . . . Robots Melted . | . . . . . Combat Hostiles . | . . . . . Parts Melted . | . . . . . Heat Transferred 74 | . . . 74 . Parts Sabotaged . | . . . . . Parts Stolen . | . . . . . Parts Stripped . | . . . . . Power Chain Reactions . | . . . . . Alert | -11 -10 -10 -9 -9 ------- Run | Yrd Mat Min Mat Min Maximum Alert Level . | . . . . . Low Security (%) 100 | 100 100 100 100 100 Level 1 . | . . . . . Level 2 . | . . . . . Level 3 . | . . . . . Level 4 . | . . . . . Level 5 . | . . . . . High Security . | . . . . . Max Security . | . . . . . Peak Influence 174 | 5 14 140 174 44 Initial 50 | . . . 50 44 Average 28 | 1 1 120 104 3 Influence Increases 427 | 30 14 140 224 19 Destroy 0b10 Robot/C 200 | . . 60 140 . Destroy 0b10 Robot/NC 45 | 30 . 10 5 . Destroy Leader 42 | . . 10 32 . Successful Hack 14 | . 14 . . . Disable Machine 75 | . . 60 15 . Destroy Structure 21 | . . . 2 19 Lose Combat Pursuer 30 | . . . 30 . Influence Decreases 415 | 30 14 10 240 121 Entered New Map 150 | . . . 80 70 Time Decay 255 | 30 14 10 150 51 Lost Part 10 | . . . 10 . Squads Dispatched 3 | . 2 . 1 . Investigation 2 | . 2 . . . Extermination . | . . . . . Reinforcement 1 | . . . 1 . Assault . | . . . . . Garrison . | . . . . . Intercept . | . . . . . Searches Triggered . | . . . . . Construction Impeded . | . . . . . Haulers Reinforced . | . . . . . Active Scanning Responses . | . . . . . Cargo Convoy Interrupts . | . . . . . Stealth | -11 -10 -10 -9 -9 --------- Run | Yrd Mat Min Mat Min Distress Signals . | . . . . . Communications Jammed . | . . . . . Distress Signals . | . . . . . Times Spotted 24 | . 1 3 10 10 Peak Tracking Total 5 | . 1 3 5 5 Tactical Retreats 5 | . . . 1 4 Traps | -11 -10 -10 -9 -9 ------- Run | Yrd Mat Min Mat Min Traps Triggered 2 | . 2 . . . Indirectly . | . . . . . Trap Hack Attempts . | . . . . . Triggered . | . . . . . Disarmed . | . . . . . Reprogrammed . | . . . . . Reused . | . . . . . Traps Extracted . | . . . . . Installed . | . . . . . Triggered . | . . . . . Machines | -11 -10 -10 -9 -9 ---------- Run | Yrd Mat Min Mat Min Machines Disabled 5 | . . 4 1 . Max in Single Turn 3 | . . 3 1 . Machines Repaired . | . . . . . Machines Dismantled . | . . . . . Machines Sabotaged . | . . . . . Overloaded Fab Kills . | . . . . . Hacking | -11 -10 -10 -9 -9 --------- Run | Yrd Mat Min Mat Min Machines Accessed 1 | . 1 . . . Terminals 1 | . 1 . . . Fabricators . | . . . . . Repair Stations . | . . . . . Recycling Units . | . . . . . Scanalyzers . | . . . . . Garrison Access . | . . . . . Total Hacks 3 | . 3 . . . Successful 1 | . 1 . . . Failed 2 | . 2 . . . Catastrophic . | . . . . . Database Lockouts . | . . . . . Manual . | . . . . . Terminals 3 | . 3 . . . Fabricators . | . . . . . Repair Stations . | . . . . . Recycling Units . | . . . . . Scanalyzers . | . . . . . Garrison Access . | . . . . . Terminal Hacks 1 | . 1 . . . Prototype ID Bank 1 | . 1 . . . Fabricator Hacks . | . . . . . Repair Station Hacks . | . . . . . Recycling Unit Hacks . | . . . . . Scanalyzer . | . . . . . Garrison Access Hacks . | . . . . . Unauthorized Hacks . | . . . . . Terminals . | . . . . . Fabricators . | . . . . . Repair Stations . | . . . . . Recycling Units . | . . . . . Scanalyzers . | . . . . . Garrison Access . | . . . . . Data Cores Recovered . | . . . . . Used . | . . . . . Hacking Detections 1 | . 1 . . . Full Trace Events . | . . . . . Feedback Events . | . . . . . Feedback Blocked . | . . . . . Robot Schematics Acquired . | . . . . . Robots Built . | . . . . . Authchips . | . . . . . Time . | . . . . . Total Robot Build Rating . | . . . . . Part Schematics Acquired . | . . . . . Parts Built . | . . . . . Authchips . | . . . . . Time . | . . . . . Total Part Build Rating . | . . . . . Parts Repaired . | . . . . . Time . | . . . . . Parts Recycled . | . . . . . Recycled Matter . | . . . . . Retrieved Matter . | . . . . . Retrieved Components . | . . . . . Parts Scanalyzed . | . . . . . Part Schematics Acquired . | . . . . . Parts Damaged . | . . . . . Bothacking | -11 -10 -10 -9 -9 ------------ Run | Yrd Mat Min Mat Min Used RIF Installer . | . . . . . Robots Hacked . | . . . . . Non-combat . | . . . . . Combat . | . . . . . Robot Hacks Applied . | . . . . . Relay Couplers Released . | . . . . . Fabnet Peak Effective % . | . . . . . Robots Rewired . | . . . . . Allies Hacked . | . . . . . Hacks Repelled . | . . . . . Allies | -11 -10 -10 -9 -9 -------- Run | Yrd Mat Min Mat Min Total Allies . | . . . . . Largest Group . | . . . . . Highest-Rated Group . | . . . . . Highest-Rated Ally . | . . . . . Total Orders . | . . . . . Ally Attacks . | . . . . . Total Damage . | . . . . . Kills . | . . . . . Allies Corrupted . | . . . . . Allies Melted . | . . . . . Intel | -11 -10 -10 -9 -9 ------- Run | Yrd Mat Min Mat Min Active Infowar (turns) 1252 | 105 129 22 306 690 Seismic 1252 | 105 129 22 306 690 Robot Analysis Total . | . . . . . Derelict Logs Recovered . | . . . . . Drone Launches . | . . . . . Drone Recoveries . | . . . . . Exploration | -11 -10 -10 -9 -9 ------------- Run | Yrd Mat Min Mat Min Turns Passed 1327 | 180 129 22 306 690 Spaces Moved 538 | 105 103 13 144 173 Core 3 | 3 . . . . Treads . | . . . . . Legs 535 | 102 103 13 144 173 Wheels . | . . . . . Hover . | . . . . . Flight . | . . . . . Fastest Speed 50 | 50 120 120 120 120 Average Speed 119 | 118 120 120 120 120 Slowest Speed 190 | 120 120 120 190 120 Overloaded Moves . | . . . . . Propulsion Burnouts . | . . . . . Robots Hopped . | . . . . . Potential Cave-ins . | . . . . . Cave-ins Triggered . | . . . . . Exploration Rate (%) 16 | 5 23 14 20 18 Regions Visited 4 Branch Regions 2 Pre-discovered Areas . | . . . . . Known Exits Taken . | . . . . . Unknown Exits Taken 4 | 1 1 1 1 . Scrap Searched . | . . . . . Spaces Dug . | . . . . . Terrain Destroyed 42 | . . . . 42 Melee . | . . . . . Projectile . | . . . . . AOE 42 | . . . . 42 Terrain Rammed . | . . . . . Walls Destroyed . | . . . . . Machines Disabled . | . . . . . Actions | -11 -10 -10 -9 -9 --------- Run | Yrd Mat Min Mat Min Total 1112 | 132 110 16 206 648 Wait 472 | . . . 4 468 Move 534 | 104 102 12 143 173 Hop . | . . . . . Pick Up 14 | 7 3 . 4 . Fast Attach 10 | 7 . . 3 . Attach . | . . . . . Detach . | . . . . . Swap 11 | . 2 2 6 1 Drop 12 | . 3 . 9 . Fire 59 | 14 . 2 37 6 Melee . | . . . . . Ram . | . . . . . Kick . | . . . . . Crush . | . . . . . Escape Stasis . | . . . . . Rewire . | . . . . . Trap . | . . . . . Miscellaneous . | . . . . . Route ------- -11/Scrapyard -10/Materials -10/Mines -9/Materials -9/Mines History --------- Turn | Location | Event 3 | -11/Scrapyard | Discovered new exit (range 16) 181 | -11/Scrapyard | Entered Materials 292 | -10/Materials | Discovered new exit (range 16) 304 | -10/Materials | Build established: Mutant 310 | -10/Materials | Entered Mines 321 | -10/Mines | Discovered new exit (range 10) 332 | -10/Mines | Entered Materials 332 | -9/Materials | Evolved 2 slots: Propulsion x1, Utility x1 584 | -9/Materials | Discovered new exit (range 5) 638 | -9/Materials | Entered Mines 639 | -9/Mines | Assembled infested the area 779 | -9/Mines | Build established: Scavenger-Mutant 1328 | -9/Mines | Self-destructed Last Messages --------------- 00626_ Acquired Imp. Light Armor Plating. LOCATION=UNKNOWN GOAL=ESCAPE Something is scanning the area. 00639_ ALERT: Infestation in the mines, dispatching Demolisher response squad. 01124_ K-01 Serf collects debris. 01126_ U-05 Engineer lays Concrete. 01128_ K-01 Serf collects debris. 01129_ U-05 Engineer builds a Wall. 01131_ K-01 Serf collects debris. 01259_ R-06 Scavenger destroyed. 01283_ K-01 Serf collects debris. 01313_ as-54638 destroyed. 01316_ U-05 Engineer lays Concrete. 01318_ as-05611 destroyed. 01319_ U-05 Engineer lays Concrete. 01323_ The unstable cave ceiling collapses. 01324_ as-26865 destroyed. 01326_ as-66812 destroyed. Map ----- +----------------------------------------------------+ | | | ????????????????????????????????????????????? | | ????????????????????????????????????????????? | | ???########?????????????????????????????????? | | ??## ###########???????????????????????? | | ?## #???????????????????????? | | ?# #???????????????????????? | | ?# ### #???????????????????????? | | ?# #?# #???????????????????????? | | ?## #?# #???????????????????????? | | ??## ### #???????????????????????? | | ???# ## #### #???????????????????????? | | ???## ## #?# #???????????????????????? | | ????## ## ### ##?????? ?????????????? | | ????## # #?????% ?????????????? | | ???## #???? ! ?????????????? | | ???# ###### ##???? #??????????????? | | ??# ##??## ##???? #???????????????? | | ??# ##??## #???## #???????????????? | | ??## ##???# *u##?# =%#######??????????? | | ???## ##???## =%|## !%= #??????????? | | ????#####???## != = # #?????????? | | ???????????## * = %! ?????????? | | ???????????# | = *% #?????????? | | ???????????# a #??????????? | | ???????????# @ %a*%????????? | | ??????????#!%| ! % #????????? | | ??????????# *## <= # #????????? | | ??????????###?####### !#????????????? | | ?????????????????????# ! ### #???????????? | | ??????????????????????#%=##???###???????????? | | ???????????????????????!=#??????????????????? | | ????????????????????????!#??????????????????? | | ????????????????????????%#??????????????????? | | ?????????????????????????#??????????????????? | | ????????????????????????????????????????????? | | ????????????????????????????????????????????? | | ????????????????????????????????????????????? | | ????????????????????????????????????????????? | | ????????????????????????????????????????????? | | ????????????????????????????????????????????? | | ????????????????????????????????????????????? | | ????????????????????????????????????????????? | | ????????????????????????????????????????????? | | ????????????????????????????????????????????? | | ????????????????????????????????????????????? | | ????????????????????????????????????????????? | | ????????????????????????????????????????????? | | ????????????????????????????????????????????? | | ????????????????????????????????????????????? | +----------------------------------------------------+ Best States ------------- Heat Dissipation 28 Energy Generation 14 Energy Capacity 275 Matter Stores 300 Matter Capacity 300 Sight Range 16 Terrain Scan Density 10 Armor Coverage 150 Evasion (%) 55 Item Schematics ----------------- None Robot Schematics ------------------ None Fabricated ------------ Nothing Repaired ---------- Nothing Alien Tech Used ----------------- None Achievements -------------- None Challenges ------------ None Game ------ Seed LongswordAssaultGenerator Manual? 0 Play Time 00:09:09 Cumulative 184.4 hours Start 2025.07.22 @ 19:29:37 End 2025.07.22 @ 22:10:36 Sessions 2 Manual Loads 0 Difficulty Rogue Special Mode None Game No. 444 Rogue 444 Adventurer 0 Explorer 0 Win Type - Total 8 Types 6/0/1/1/0/0/0/0/0/0 Lore% 73 Gallery% 65 Achievement% 51 Wizard Run 0 Options --------- Layout 0 ASCII 0 Keyboard 0 Movement Numpad Keybinds 0 Fullscreen 2 Font 18/Terminus Map View 76x50 Zoom Use 0% Tactical HUD 1 Map Filters NONE Filters SATURATION(100) Steam 1 RUN: c99b4641-74ef-4511-a816-016f093bd8eb